Workbook

Sheet Fonctions .SI
A1: VENTES OCTOBRE | H1: Nombre d'articles vendus dont la quantité dépasse 500 | K1: Total des ventes par article | N1: Total des quantités par date
A2: Date | B2: Vendeur | C2: Article | D2: Q | E2: PU | F2: Total | K2: Article | L2: Total | N2: Dates | O2: Total
A3: 2001-10-03 | B3: Martin | C3: écrous | D3: 1534 | E3: 0.25 | F3: =D3*E3 -> 383.5 | H3: =COUNTIF(D3:D17,">500") -> 8 | K3: clous | L3: =SUMIF($C$3:$C$17,K3,$F$3:$F$17) -> 2692.63 | N3: 2001-10-03 | O3: =SUMIF($A$3:$A$17,N3,$D$3:$D$17) -> 5575
A4: 2001-10-03 | B4: Dupont | C4: clous | D4: 1987 | E4: 0.25 | F4: 496.75 | K4: écrous | L4: =SUMIF($C$3:$C$17,K4,$F$3:$F$17) -> 1883.73 | N4: 2001-10-08 | O4: =SUMIF($A$3:$A$17,N4,$D$3:$D$17) -> 2607
A5: 2001-10-03 | B5: Martin | C5: écrous | D5: 2054 | E5: 0.25 | F5: 513.5 | K5: pieux | L5: 1555.91 | N5: 2001-10-14 | O5: 1485
A6: 2001-10-08 | B6: Lambert | C6: pieux | D6: 654 | E6: 0.35 | F6: 228.9 | N6: 2001-10-23 | O6: 831
A7: 2001-10-08 | B7: Martin | C7: écrous | D7: 951 | E7: 0.25 | F7: 237.75 | H7: Nombre d'articles vendus dont le prix est inférieur à 0,30€ | N7: 2001-10-27 | O7: 402
A8: 2001-10-08 | B8: Martin | C8: écrous | D8: 1002 | E8: 0.25 | F8: 250.5
A9: 2001-10-14 | B9: Lambert | C9: pieux | D9: 396 | E9: 0.35 | F9: 138.6
A10: 2001-10-14 | B10: Dupont | C10: clous | D10: 542 | E10: 0.35 | F10: 189.7 | H10: =COUNTIF(E3:E17,"<0,35") -> 5
A11: 2001-10-14 | B11: Lambert | C11: pieux | D11: 547 | E11: 0.35 | F11: 191.45
A12: 2001-10-23 | B12: Martin | C12: clous | D12: 187 | E12: 3.72 | F12: 695.64 | K12: Moyenne des ventes par article | N12: Moyenne des quantités par vendeur
A13: 2001-10-23 | B13: Dupont | C13: clous | D13: 322 | E13: 0.35 | F13: 112.7
A14: 2001-10-23 | B14: Lambert | C14: clous | D14: 322 | E14: 3.72 | F14: 1197.84 | H14: Nombre d'articles vendus à partir du 15 octobre 2001 | K14: Article | L14: Moyenne | N14: Vendeur | O14: Moyenne
A15: 2001-10-27 | B15: Dupont | C15: pieux | D15: 123 | E15: 3.72 | F15: 457.56 | K15: clous | L15: =AVERAGEIF($C$3:$C$17,K15,$F$3:$F$17) -> 538.526 | N15: Martin | O15: =AVERAGEIF($B$3:$B$17,N15,$D$3:$D$17) -> 1145.6
A16: 2001-10-27 | B16: Lambert | C16: écrous | D16: 134 | E16: 3.72 | F16: 498.48 | K16: écrous | L16: =AVERAGEIF($C$3:$C$17,K16,$F$3:$F$17) -> 376.746 | N16: Dupont | O16: =AVERAGEIF($B$3:$B$17,N16,$D$3:$D$17) -> 623.8
A17: 2001-10-27 | B17: Dupont | C17: pieux | D17: 145 | E17: 3.72 | F17: 539.4 | H17: =COUNTIF(A3:A17,">15/10/2001") -> 6 | K17: pieux | L17: 311.182 | N17: Lambert | O17: 410.6

Sheet La fonction Si
A1: Exemple 1
A2: Prévisions | B2: Résultats | C2: Objectifs 1 | D2: Objectifs 2
A3: 1500 | B3: 1531 | C3: =IF(B3>A3,"ATTEINT","MANQUE") -> ATTEINT | D3: =IF(B3>=A3,"ATTEINT","MANQUE") -> ATTEINT
A4: 2000 | B4: 2984 | C4: =IF(B4>A4,"ATTEINT","MANQUE") -> ATTEINT | D4: =IF(B4>=A4,"ATTEINT","MANQUE") -> ATTEINT
A5: 2500 | B5: 2499 | C5: MANQUE | D5: MANQUE
A6: 3000 | B6: 3000 | C6: MANQUE | D6: ATTEINT
A8: Afficher ATTEINT ou MANQUE
A9: Objectif 1 - Si les résultats dépassent les prévisions l'objectif sera atteint sinon il sera manqué
A10: Objectif 2 - Si les résultats sont au moins équivalents aux prévisions l'objectif sera atteint sinon il sera manqué
A12: Exemple 2
A13: NOMS | B13: NOMBRE D'ENFANTS | C13: PRIME
A14: JENNIFER | B14: 5 | C14: =IF(B14<3,"50","70")*B14 -> 350
A15: JONATHAN | B15: 1 | C15: =IF(B15<3,"50","70")*B15 -> 50
A16: BONNIE | B16: 2 | C16: 100
A17: CLYDE | B17: 1 | C17: 50
A18: LOIS | B18: 5 | C18: 350
A19: CLARK | B19: 3 | C19: 210
A20: BERNADETT | B20: 2 | C20: 100
A21: JACQUES | B21: 2 | C21: 100
A23: Calculer une prime de 50€ par enfant si le nombre d'enfants est inférieur à 3 et une prime de 70€ par enfant pour les autres
A25: Exemple 3
A26: Article | B26: Quantité Achetée | C26: Quantité Vendue | D26: Quantité Restante | E26: A commander
A27: Mars | B27: 40 | C27: 22 | D27: =B27-C27 -> 18 | E27: =IF(D27<=B27/2,"OUI",0) -> OUI
A28: Léo | B28: 50 | C28: 21 | D28: =B28-C28 -> 29 | E28: =IF(D28<=B28/2,"OUI",0) -> 0
A29: Twix | B29: 25 | C29: 12 | D29: 13 | E29: =IF(D29<=B29/2,"OUI",0) -> 0
A30: Cha-cha | B30: 35 | C30: 28 | D30: 7 | E30: OUI
A31: Kinder | B31: 70 | C31: 38 | D31: 32 | E31: OUI
A32: Snickers | B32: 100 | C32: 47 | D32: 53 | E32: 0
A33: Bounty | B33: 55 | C33: 25 | D33: 30 | E33: 0
A34: Lion | B34: 20 | C34: 2 | D34: 18 | E34: 0
A35: Krups | B35: 80 | C35: 38 | D35: 42 | E35: 0
A36: Smarties | B36: 60 | C36: 33 | D36: 27 | E36: OUI
A37: Coca | B37: 100 | C37: 62 | D37: 38 | E37: OUI
A38: Fanta | B38: 100 | C38: 49 | D38: 51 | E38: 0
A39: Sprite | B39: 100 | C39: 42 | D39: 58 | E39: 0
A40: Ice tea | B40: 100 | C40: 50 | D40: 50 | E40: OUI
A41: Cécémel | B41: 100 | C41: 33 | D41: 67 | E41: 0
A43: Si la Quantité Restante est inférieure ou égale à la moitié de la Quantité Achetée, il faut indiquer OUI sinon la cellule reste vide

Sheet Si Imbriqués 1
B2: Nom | C2: Prénom | D2: Excel/20 | E2: Word/20 | F2: Powerpoint/20 | G2: Pourcentage | H2: Conclusion 1 | I2: CC2
B3: Laure | C3: AMBART | D3: 8 | E3: 17 | F3: 19 | G3: =SUM(D3:F3)/60 -> 0.7333333333 | H3: =IF(G3<50%,"Echec",IF(G3>75%,"Réussite","Bon travail")) -> Bon travail | I3: =IF(G3<50%,"Echec",IF(G3<=75%,"Bon travail","Réussite")) -> Bon travail
B4: Larry | C4: BAMBELLE | D4: 0 | E4: 16 | F4: 4 | G4: =SUM(D4:F4)/60 -> 0.3333333333 | H4: =IF(G4<50%,"Echec",IF(G4>75%,"Réussite","Bon travail")) -> Echec | I4: =IF(G4<50%,"Echec",IF(G4<=75%,"Bon travail","Réussite")) -> Echec
B5: Agathe | C5: DEBLOUSE | D5: 9 | E5: 9 | F5: 11 | G5: 0.4833333333 | H5: Echec | I5: Echec
B6: Sarah | C6: FRÉCHIS | D6: 8 | E6: 12 | F6: 14 | G6: 0.5666666667 | H6: Bon travail | I6: Bon travail
B7: Sam | C7: GRATH | D7: 12 | E7: 8 | F7: 10 | G7: 0.5 | H7: Bon travail | I7: Bon travail
B8: Jacques | C8: HOUZI | D8: 19 | E8: 7 | F8: 12 | G8: 0.6333333333 | H8: Bon travail | I8: Bon travail
B9: Guy | C9: LIGUILI | D9: 6 | E9: 12 | F9: 5 | G9: 0.3833333333 | H9: Echec | I9: Echec
B10: Justine | C10: MISOPOUIN | D10: 0 | E10: 14 | F10: 15 | G10: 0.4833333333 | H10: Echec | I10: Echec
B11: Alain | C11: PROVIST | D11: 11 | E11: 11 | F11: 11 | G11: 0.55 | H11: Bon travail | I11: Bon travail
B12: Jean | C12: TAMBIEN | D12: 14 | E12: 13 | F12: 13 | G12: 0.6666666667 | H12: Bon travail | I12: Bon travail
B13: Maguy | C13: TARE | D13: 17 | E13: 15 | F13: 6 | G13: 0.6333333333 | H13: Bon travail | I13: Bon travail
B14: Lara | C14: TATOUILLE | D14: 18 | E14: 18 | F14: 13 | G14: 0.8166666667 | H14: Réussite | I14: Réussite
B15: Klaus | C15: TOUMI | D15: 11 | E15: 16 | F15: 15 | G15: 0.7 | H15: Bon travail | I15: Bon travail
B16: Sarah | C16: VIGOTE | D16: 15 | E16: 11 | F16: 12 | G16: 0.6333333333 | H16: Bon travail | I16: Bon travail
B17: Sacha | C17: VIRE | D17: 19 | E17: 18 | F17: 14 | G17: 0.85 | H17: Réussite | I17: Réussite
B19: Calculer le pourcentage de chaque élève et afficher la conclusion correspondant à ses résultats
B20: CCL 1 :Si l'élève à moins de 50 % Echec, s'il a entre 50 et 75 % Bon Travail, s'il a plus de 75% Réussite

Sheet Si Imbriqués 2
A1: Nom | B1: Montant hors taxe | C1: Taux de remise | D1: Montant valeur | E1: Montant final | H1: Nom | I1: Montant hors taxe | J1: Taux de remise
A2: CHRISJAN | B2: 10759 | C2: =IF(B2>=25000,"15%",IF(B2>=15000,"12,5%",IF(B2>10000,"7,5%",0))) -> 7,5% | D2: =B2*C2 -> 806.925 | E2: =B2-D2 -> 9952.075 | H2: CHRISJAN | I2: 10759 | J2: =IF(I2<10000,0,IF(I2<15000,"7,5%",IF(I2<25000,"12,5%",15%))) -> 7,5%
A3: VISIRIE | B3: 23299 | C3: =IF(B3>=25000,"15%",IF(B3>=15000,"12,5%",IF(B3>10000,"7,5%",0))) -> 12,5% | D3: =B3*C3 -> 2912.375 | E3: =B3-D3 -> 20386.625 | H3: VISIRIE | I3: 23299 | J3: =IF(I3<10000,0,IF(I3<15000,"7,5%",IF(I3<25000,"12,5%",15%))) -> 12,5%
A4: GUENOLA | B4: 9664 | C4: 0 | D4: 0 | E4: 9664 | H4: GUENOLA | I4: 9664 | J4: 0
A5: CASIQUE | B5: 9879 | C5: 0 | D5: 0 | E5: 9879 | H5: CASIQUE | I5: 9879 | J5: 0
A6: GENODI | B6: 26000 | C6: 15% | D6: 3900 | E6: 22100 | H6: GENODI | I6: 18034 | J6: 12,5%
A7: AGMIR | B7: 14058 | C7: 7,5% | D7: 1054.35 | E7: 13003.65 | H7: AGMIR | I7: 14058 | J7: 7,5%
A8: FERZIT | B8: 8985 | C8: 0 | D8: 0 | E8: 8985 | H8: FERZIT | I8: 8985 | J8: 0
A9: VALEZI | B9: 12294 | C9: 7,5% | D9: 922.05 | E9: 11371.95 | H9: VALEZI | I9: 12294 | J9: 7,5%
A11: Pas de remise en-dessous de 10000 € | H11: Pas de remise en-dessous de 10000 €
A12: Le taux de remise est de 7,5% à partir de 10000 € | H12: Le taux de remise est de 7,5% en dessous de 15000 €
A13: Le taux de remise est de 12,5% à partir de 15000 € | H13: Le taux de remise est de 12,5% en dessous de 25000 €
A14: Le taux de remise est de 15% à partir de 25000 € | H14: Le taux de remise est de 15% à partir de 25000 €
